bitfinex/quotes_ETHUSD_20250821
["timestamp","ask_amount","ask_price","bid_price","bid_amount"]
[1755738950057,0.116,4320.5,4320.4,0.7642]
[1755738950743,3.9634,4320.5,4320.2,0.001]
[1755738950968,24.07664934,4320.3,4320.2,0.001]
[1755738951172,3.0,4320.3,4320.2,0.001]
[1755738951576,24.37804934,4320.3,4320.2,0.001]
[1755738951743,24.83664934,4320.3,4320.2,0.001]
[1755738953870,24.83664934,4320.3,4320.2,0.3035]
[1755738953871,3.116,4320.3,4320.2,0.3035]
[1755738954069,6.663,4320.3,4320.2,0.3035]
[1755738955270,27.73964934,4320.3,4320.2,0.3035]
[1755738955863,6.663,4320.3,4320.2,0.7755]
[1755738956055,3.663,4320.3,4320.2,0.7755]
[1755738956256,0.116,4320.3,4320.2,0.7755]
[1755738956460,0.4606,4321.5,4320.2,0.7755]
[1755738956461,3.0,4321.4,4320.2,0.7755]
[1755738956679,0.116,4320.5,4320.3,0.472]
[1755738956863,0.116,4320.5,4320.4,0.3025]
[1755738957264,3.548,4321.1,4320.4,0.797646]
[1755738957463,0.116,4320.9,4320.5,0.472]
[1755738957688,0.116,4320.9,4320.8,0.3025]
[1755738958189,0.116,4320.9,4320.8,0.7745]
[1755738960295,0.116,4320.9,4320.8,0.3025]
[1755738960498,0.002,4321.5,4320.8,0.7745]
[1755738960673,0.116,4321.2,4320.9,0.02314332]
[1755738960893,0.116,4321.2,4321.1,0.3025]
[1755738961071,0.116,4321.2,4321.1,0.7745]
[1755738962102,0.002,4321.5,4321.1,0.7745]
[1755738962310,0.002,4321.5,4321.2,0.472]
[1755738962488,0.002,4321.5,4321.4,0.3025]
[1755738962880,0.002,4321.5,4321.4,0.7745]
[1755738963425,0.002,4321.5,4321.4,0.3025]
[1755738964203,0.002,4321.5,4321.0,0.472]
[1755738964521,0.002,4321.5,4320.4,0.116]
[1755738964522,0.116,4321.1,4320.4,0.116]
[1755738964727,0.116,4321.4,4320.7,0.116]
[1755738964890,0.116,4321.4,4321.0,0.3025]
[1755738965091,0.116,4321.4,4321.1,0.472]
[1755738965318,0.116,4321.4,4321.3,0.3025]
[1755738965820,0.116,4321.4,4321.3,0.7745]
[1755738966681,0.116,4321.4,4321.3,0.3025]
[1755738966883,0.116,4321.4,4321.3,0.7745]
[1755738967318,0.116,4321.4,4321.3,0.3025]
[1755738968115,0.116,4321.4,4320.9,0.472]
[1755738968327,0.116,4321.0,4320.5,0.472]
[1755738968511,0.116,4321.0,4320.9,0.3025]
[1755738968982,0.116,4321.0,4320.6,0.472]
[1755738968983,0.116,4321.0,4320.3,0.588]
[1755738969386,3.0,4321.4,4320.3,0.472]
[1755738969586,0.116,4320.7,4320.2,0.001]
[1755738969817,24.62464934,4321.1,4320.2,0.001]
[1755738970024,0.116,4320.3,4320.2,0.001]
[1755738970624,0.4174,4320.3,4320.2,0.001]
[1755738970793,0.116,4320.3,4320.2,0.001]
[1755738972392,0.4267,4320.3,4320.2,0.001]
[1755738973019,4.421,4320.3,4320.2,0.001]
[1755738973898,28.49764934,4320.3,4320.2,0.001]
[1755738974510,6.9747,4320.3,4320.2,0.001]
[1755738974748,0.116,4320.3,4320.2,0.2898]
[1755738975045,0.116,4320.3,4320.2,0.7563]
[1755738975204,0.116,4320.3,4320.2,0.2898]
[1755738975707,0.116,4320.3,4320.2,0.7563]
[1755738977514,3.548,4320.8,4320.2,0.7563]
[1755738977716,0.116,4320.5,4320.2,0.2898]
[1755738978842,0.116,4320.5,4320.2,0.001]
[1755738979156,0.5623,4320.5,4320.2,0.001]
[1755738979329,0.3107,4320.3,4320.2,0.001]
[1755738979712,0.757,4320.3,4320.2,0.001]
[1755738982312,0.9723194,4320.3,4320.2,0.001]
[1755738983045,0.66,4320.2,4319.7,0.001]
[1755738983249,24.38734934,4319.8,4319.7,0.001]
[1755738983448,28.9769279,4319.8,4319.7,0.001]
[1755738983657,29.4232279,4319.8,4319.7,0.001]
[1755738984544,29.20769429,4319.8,4319.7,0.001]
[1755738985445,3.0,4319.7,4319.3,0.001]
[1755738985645,24.38734934,4319.4,4319.3,0.001]
[1755738985847,28.14938093,4319.4,4319.3,0.001]
[1755738986047,28.59568093,4319.4,4319.3,0.001]
[1755738986348,28.71168093,4319.4,4319.3,0.001]
[1755738987456,28.49664934,4319.4,4319.3,0.001]
[1755738987617,24.94964934,4319.4,4319.3,0.001]
[1755738987949,28.49564934,4319.4,4319.3,0.001]
[1755738989024,28.71033596,4319.4,4319.3,0.001]
[1755738989348,28.49564934,4319.4,4319.3,0.001]
[1755738989525,28.71026871,4319.4,4319.3,0.001]
[1755738990433,28.71025464,4319.4,4319.3,0.001]
[1755738990629,28.49564934,4319.4,4319.3,0.001]
[1755738991670,28.71020884,4319.4,4319.3,0.001]
[1755738991972,29.37020884,4319.4,4319.3,0.001]
[1755738992852,4.3012595,4319.4,4319.3,0.001]
[1755738993056,28.92290884,4319.4,4319.3,0.001]
[1755738993376,28.70834934,4319.4,4319.3,0.001]
[1755738993679,3.661,4319.4,4319.3,0.2898]
[1755738994664,3.661,4319.4,4319.3,0.7563]
[1755738995043,3.661,4319.4,4319.3,0.2898]
[1755738995369,4.418,4319.4,4319.3,0.001]
[1755738997445,3.0,4319.3,4318.8,0.021]
[1755738997668,21.50334934,4318.9,4318.8,0.021]
[1755738997967,25.04934934,4318.9,4318.8,0.021]
[1755738998169,25.49564934,4318.9,4318.8,0.021]
[1755738998477,26.26983909,4318.9,4318.8,0.021]
[1755738998841,26.15564934,4318.9,4318.8,0.021]
[1755738999167,3.66,4318.8,4316.9,0.4665]
[1755738999336,21.19264934,4317.9,4316.6,0.116]
[1755738999533,24.73964934,4317.9,4317.8,0.3088]
[1755739000145,25.36434184,4317.9,4317.8,0.02]
[1755739000343,25.05034934,4317.9,4317.8,0.02]
[1755739001173,28.05034934,4317.9,4317.8,0.02]
[1755739001374,21.07664934,4316.9,4316.4,0.4693]
[1755739001546,24.73964934,4316.9,4316.8,0.3248]
[1755739002979,24.73964934,4316.9,4316.8,0.02]
[1755739003951,28.02794934,4316.9,4316.8,0.02]
[1755739004161,28.46834934,4316.9,4316.8,0.02]
[1755739004480,28.02794934,4316.9,4316.8,0.02]
[1755739005287,28.46834934,4316.9,4316.8,0.02]
[1755739005879,28.02794934,4316.9,4316.8,0.02]
[1755739006081,28.46834934,4316.9,4316.8,0.02]
[1755739006392,29.34271254,4316.9,4316.8,0.02]
[1755739006760,29.34271254,4316.9,4315.3,0.4693]
[1755739006961,29.34271254,4316.9,4315.0,10.4693]
[1755739006962,24.19264934,4315.9,4315.0,10.4693]
[1755739007162,28.02894934,4315.9,4315.0,10.4693]
[1755739007666,28.46934934,4315.9,4315.0,10.0]
[1755739008168,3.0,4315.8,4315.0,9.97]
[1755739008367,0.116,4315.1,4315.0,9.97]
[1755739008584,3.663,4315.1,4315.0,10.7441]
[1755739009468,3.663,4315.1,4315.0,10.2748]
[1755739010184,3.663,4315.1,4315.0,9.97]
[1755739010768,3.663,4315.1,4315.0,10.2748]
[1755739011072,3.663,4315.1,4315.0,9.97]
[1755739011073,6.9513,4315.1,4315.0,9.97]
[1755739011264,7.3917,4315.1,4315.0,9.97]
[1755739011468,7.3917,4315.1,4315.0,9.9613]
[1755739011869,6.9513,4315.1,4315.0,9.9613]
[1755739012469,6.9513,4315.1,4315.0,9.9517]
[1755739012999,6.9513,4315.1,4315.0,9.9527]
[1755739013181,7.3917,4315.1,4315.0,9.9527]
[1755739014093,6.9513,4315.1,4315.0,9.9527]
[1755739015101,3.116,4315.1,4315.0,10.2575]
[1755739015303,6.667,4315.1,4315.0,10.2575]
[1755739015488,27.74364934,4315.1,4315.0,9.9527]
[1755739016069,24.19264934,4315.1,4315.0,9.9527]
[1755739016283,3.116,4315.1,4315.0,10.2575]
[1755739016577,6.666,4315.1,4315.0,10.7268]
[1755739016777,6.666,4315.1,4315.0,10.2575]
[1755739018921,6.665,4315.1,4315.0,10.7268]
[1755739019327,3.116,4315.1,4315.0,10.7268]
[1755739019478,3.0,4315.1,4315.0,10.7268]
[1755739019679,6.665,4315.1,4315.0,10.2575]
[1755739019912,6.9533,4315.1,4315.0,9.9527]
[1755739020246,0.116,4315.1,4315.0,10.7268]
[1755739020447,3.665,4315.1,4315.0,10.7268]
[1755739020931,24.74164934,4315.1,4315.0,9.9527]
[1755739021131,25.52660271,4315.1,4315.0,9.9527]
[1755739021335,4.16165337,4315.1,4315.0,10.7268]
[1755739021634,4.16365337,4315.1,4315.0,10.7268]
[1755739023037,4.16365337,4315.1,4315.0,10.2575]
[1755739023233,4.16365337,4315.1,4315.0,9.9527]
[1755739024216,4.16365337,4315.1,4315.0,10.2575]
[1755739024548,4.16365337,4315.1,4315.0,9.9527]
[1755739024926,4.45195337,4315.1,4315.0,9.9527]
[1755739025124,0.61265337,4315.1,4315.0,10.2575]
[1755739025333,3.667,4315.1,4315.0,10.7268]
[1755739025540,4.16365337,4315.1,4315.0,10.7268]
[1755739026049,4.16365337,4315.1,4315.0,10.2575]
[1755739027458,4.16365337,4315.1,4315.0,9.9527]
[1755739027459,28.96900271,4315.1,4315.0,9.9527]
[1755739027664,29.62900271,4315.1,4315.0,9.9527]
[1755739028362,29.84334814,4315.1,4315.0,9.9527]
[1755739028562,29.95993397,4315.1,4315.0,9.9527]
[1755739029222,29.84334814,4315.1,4315.0,9.9527]
[1755739029420,30.05784275,4315.1,4315.0,9.9527]
[1755739029722,29.84334814,4315.1,4315.0,9.9527]
[1755739030144,30.05784139,4315.1,4315.0,9.9527]
[1755739030720,26.50684139,4315.1,4315.0,9.9527]
[1755739030919,30.05784139,4315.1,4315.0,9.9527]
[1755739031421,30.18671852,4315.1,4315.0,9.9527]
[1755739032933,29.74631852,4315.1,4315.0,9.9527]
[1755739033554,28.79801852,4315.1,4315.0,10.2492]
[1755739033765,22.11814139,4315.1,4315.0,10.2492]
[1755739033918,0.8269988,4315.1,4315.0,10.7113]
[1755739034275,3.668,4315.1,4315.0,10.7113]
[1755739034432,4.16465337,4315.1,4315.0,10.7113]
[1755739035153,4.16465337,4315.1,4315.0,10.2492]
[1755739035338,4.37996478,4315.1,4315.0,9.9527]
[1755739035539,4.37995969,4315.1,4315.0,9.9527]
[1755739035856,4.59525673,4315.1,4315.0,9.9527]
[1755739036657,4.59525673,4315.1,4315.0,10.2492]
[1755739036947,4.59525673,4315.1,4315.0,10.7113]
[1755739037149,4.59625673,4315.1,4315.0,10.7113]
[1755739037361,1.04325673,4315.1,4315.0,10.7113]
[1755739037565,4.10060336,4315.1,4315.0,10.7113]
[1755739038062,0.54660336,4315.1,4315.0,10.7113]
[1755739038361,3.88529704,4315.1,4315.0,10.7113]
[1755739038552,3.88530632,4315.1,4315.0,10.7113]
[1755739038916,3.88530632,4315.1,4315.0,9.9527]
[1755739039117,7.88431863,4315.1,4315.0,9.9527]
[1755739039559,8.33531863,4315.1,4315.0,9.9527]
[1755739040833,4.33031863,4315.1,4315.0,9.9527]
[1755739041035,7.59681863,4315.1,4315.0,9.9527]
[1755739041229,7.88331863,4315.1,4315.0,9.9527]
[1755739041430,3.0,4315.0,4314.8,0.02]
[1755739041636,29.63433999,4314.9,4314.8,0.02]
[1755739041934,30.08533999,4314.9,4314.8,0.02]
[1755739043074,30.20133999,4314.9,4314.8,0.02]
[1755739044569,30.20123967,4314.9,4314.8,0.02]
[1755739045442,29.75023967,4314.9,4314.8,0.02]
[1755739045643,30.20123967,4314.9,4314.8,0.02]
[1755739046072,29.75023967,4314.9,4314.8,0.02]
[1755739046580,29.09023967,4314.9,4314.8,0.02]
[1755739047368,28.74556133,4314.9,4314.8,0.02]
[1755739047572,28.74556133,4314.9,4314.8,0.3165]
[1755739047573,4.17313697,4314.9,4314.8,0.3165]
[1755739047773,7.11197732,4314.9,4314.8,0.02]
[1755739048353,7.11197732,4314.9,4314.8,0.3165]
[1755739048561,4.11197732,4314.9,4314.8,0.3165]
[1755739048756,5.05847732,4314.9,4314.8,0.02]
[1755739049473,6.13529879,4314.9,4314.8,0.02]
[1755739050071,5.68429879,4314.9,4314.8,0.02]
[1755739050584,6.13529879,4314.9,4314.8,0.02]
[1755739050946,1.83279879,4314.9,4314.8,0.02]
[1755739051151,25.32292151,4314.9,4314.8,0.3165]
[1755739051377,25.81944813,4314.9,4314.8,0.3165]
[1755739051785,25.81944813,4314.9,4314.8,0.02]
[1755739053778,25.81946163,4314.9,4314.8,0.02]
[1755739054282,4.74281229,4314.9,4314.8,0.7786]
[1755739054873,4.11697732,4314.9,4314.8,0.3165]
[1755739055278,4.11497732,4314.9,4314.8,0.7786]
[1755739055851,0.54697732,4314.9,4314.8,0.7786]
[1755739056162,3.684,4314.9,4314.8,0.7786]
[1755739056692,0.7786,4314.6,4307.4,0.2]
[1755739056894,0.66,4312.1,4306.6,0.015]
[1755739057099,21.07664934,4308.9,4308.8,0.02]
[1755739057297,25.01802734,4308.9,4308.8,0.7786]
[1755739057502,25.39186373,4308.9,4308.8,0.7786]
[1755739057656,22.00289494,4308.9,4308.8,0.7786]
[1755739057987,21.50668055,4308.9,4308.8,0.7786]
[1755739058187,0.43003121,4308.9,4308.8,0.7786]
[1755739058387,21.99851715,4308.9,4308.8,0.7786]
[1755739058592,22.44368076,4308.9,4308.8,0.7786]
[1755739058769,21.99851715,4308.9,4308.8,0.7786]
[1755739058967,21.9969188,4308.9,4308.8,0.7786]
[1755739059186,21.9969188,4308.9,4308.8,0.02]
[1755739059697,21.9969188,4308.9,4308.2,0.4621]
[1755739059883,0.92026946,4308.8,4308.2,0.4621]
[1755739060195,0.66,4309.7,4307.0,0.61]
[1755739060196,21.17564934,4308.3,4307.0,0.61]
[1755739060396,21.07664934,4308.1,4307.6,0.4621]
[1755739060699,4.73826946,4308.0,4307.2,0.4621]
[1755739060858,0.92026946,4307.9,4307.2,0.4621]
[1755739061059,4.73726946,4307.9,4307.0,0.61]
[1755739061709,0.92026946,4307.9,4307.0,0.61]
[1755739061887,0.92026946,4307.9,4307.8,0.7844]
[1755739062700,3.818,4308.8,4307.8,0.7844]
[1755739063006,0.4918366,4308.7,4307.9,0.4582]
[1755739063206,0.49134091,4308.7,4307.9,0.4582]
[1755739063516,0.43093409,4308.7,4307.9,0.4582]
[1755739063860,0.92225872,4308.7,4308.6,0.3062]
[1755739064165,0.49132463,4308.7,4308.6,0.7644]
[1755739068514,0.60732463,4308.7,4308.6,0.3062]
[1755739069709,0.60732463,4308.7,4308.6,0.7644]
[1755739071008,0.49132463,4308.7,4308.6,0.7644]
[1755739071166,0.49132463,4308.7,4308.6,0.8804]
[1755739071491,0.49132463,4308.7,4308.6,2.58269557]
[1755739072302,0.49132463,4308.7,4308.6,4.90363508]
[1755739072999,0.49132463,4308.7,4308.6,5.56363508]
[1755739073200,0.49132463,4308.7,4308.6,8.56363508]
[1755739073397,0.49132463,4308.7,4308.6,8.44763508]
[1755739073702,0.02,4309.8,4309.2,2.32057732]
[1755739073908,0.49005271,4309.7,4309.6,16.77934581]
[1755739074072,0.49005271,4309.7,4309.6,0.8804]
[1755739074480,0.49005271,4309.7,4309.6,0.903604]
[1755739074681,0.49005271,4309.7,4309.6,0.8804]
[1755739075197,0.70266653,4309.7,4309.6,0.8804]
[1755739076764,0.49005271,4309.7,4309.6,0.8804]
[1755739077376,0.49005271,4309.7,4309.6,4.6694]
[1755739077925,0.49005271,4309.7,4309.1,0.4582]
[1755739078074,0.7029913,4309.6,4309.1,0.5742]
[1755739078279,0.91606661,4309.5,4309.1,0.116]
[1755739078581,0.116,4309.2,4308.8,3.787]
[1755739078771,0.7029913,4309.1,4308.8,3.787]
[1755739078972,0.7029913,4309.0,4308.6,0.5742]
[1755739079303,0.91619582,4308.9,4308.7,3.786]
[1755739079601,0.116,4309.2,4308.7,3.786]
[1755739079602,0.7029913,4308.8,4308.7,3.786]
[1755739079907,0.7029913,4308.8,4308.7,4.0922]
[1755739080119,0.7029913,4308.8,4308.7,4.5504]
[1755739080294,0.91633295,4308.8,4308.7,4.5504]
[1755739080695,0.7029913,4308.8,4308.7,5.15624885]
[1755739080886,0.7029913,4308.8,4308.7,5.79304]
[1755739081503,0.7029913,4308.8,4308.7,8.79304]
[1755739081704,0.002,4309.7,4308.8,3.66]
[1755739081904,0.91885432,4309.6,4309.2,16.11934581]
[1755739082103,0.70542076,4309.5,4309.3,8.85113458]
[1755739082312,0.002,4309.7,4309.6,0.116]
[1755739082621,0.70825763,4309.7,4309.6,0.4222]
[1755739082789,0.49453761,4309.7,4309.6,0.8804]
[1755739082989,0.49453761,4309.7,4309.6,0.7644]
[1755739083288,0.49453761,4309.7,4309.6,0.8804]
[1755739083489,0.49453761,4309.7,4309.6,4.2002]
[1755739083988,0.49453761,4309.7,4309.6,4.6584]
[1755739084417,0.70868362,4309.7,4309.6,4.6584]
[1755739085121,0.49453761,4309.7,4309.6,4.6584]
[1755739085294,0.70890949,4309.7,4309.6,4.6584]
[1755739085901,0.49453761,4309.7,4309.6,4.6584]
[1755739086319,1.05346161,4309.7,4309.6,4.6584]
[1755739087328,0.83849084,4309.7,4309.6,4.6584]
[1755739087830,0.70950838,4309.7,4309.6,4.6584]
[1755739088041,0.49453761,4309.7,4309.6,32.60573425]
[1755739088245,0.002,4309.7,4309.6,32.60573425]
[1755739088524,0.002,4309.7,4309.6,30.28533329]
[1755739088904,0.002,4309.7,4309.6,32.60573425]
[1755739090323,0.002,4309.7,4309.6,30.28533329]
[1755739090728,0.002,4309.7,4309.6,32.60573425]
[1755739090925,0.002,4309.7,4309.6,30.28533329]
[1755739091300,0.002,4309.7,4309.6,32.60573425]
[1755739092427,0.002,4309.7,4309.6,7.1832]
[1755739092628,0.002,4309.7,4309.6,6.876]
[1755739093630,0.3077,4309.7,4309.6,3.876]
[1755739094117,0.3077,4309.7,4309.6,0.116]
[1755739094323,0.3077,4309.7,4309.6,3.874]
[1755739095020,0.3077,4309.7,4309.6,0.116]
[1755739095224,0.3077,4309.7,4309.6,3.873]
[1755739095602,0.002,4309.7,4309.6,7.1614]
[1755739095808,0.002,4309.7,4309.6,8.6631]
[1755739096009,0.002,4309.7,4309.6,29.86419329]
[1755739096235,0.002,4309.7,4309.6,29.47689329]
[1755739096600,0.002,4309.7,4309.6,29.02249329]
[1755739096806,0.002,4309.7,4309.6,7.528]
[1755739097435,0.0065,4309.7,4309.6,6.6185]
[1755739098747,0.002,4309.7,4309.6,6.6185]
[1755739099706,0.002,4309.7,4309.4,3.0]
[1755739099906,0.002,4309.7,4309.5,3.747]
[1755739101059,0.002,4309.7,4309.6,3.9484]
[1755739101216,0.002,4309.7,4309.6,6.86240496]
[1755739101419,0.002,4309.7,4309.6,6.83920096]
[1755739104615,0.002,4310.2,4309.7,7.75934712]
[1755739104917,0.002,4310.2,4310.1,27.46962507]
[1755739105115,0.002,4310.2,4310.1,31.32262507]
[1755739105343,0.002,4310.2,4310.1,31.77702507]
[1755739106519,0.002,4310.2,4310.1,36.57702507]
[1755739107746,0.002,4310.2,4310.1,36.51982507]
[1755739108059,0.002,4310.2,4310.1,38.8819647]
[1755739108965,0.02,4311.8,4310.5,5.97991648]
[1755739109136,0.002,4311.1,4310.5,31.19840977]
[1755739109345,0.002,4311.1,4310.5,31.76880977]
[1755739109661,0.002,4311.1,4310.5,33.84079672]
[1755739111442,0.002,4311.1,4311.0,5.97964741]
[1755739111773,0.002,4311.1,4311.0,31.1941407]
[1755739111977,0.002,4311.1,4311.0,31.7645407]
[1755739112844,0.02,4311.8,4311.7,27.18036411]
[1755739113046,0.02,4311.8,4311.7,33.55390374]
[1755739113649,0.02,4311.8,4311.7,33.66990374]
[1755739116564,0.3257,4311.8,4311.7,3.0]
[1755739116757,0.7843,4311.8,4311.7,3.717]
[1755739117480,0.7843,4311.8,4311.0,3.0]
[1755739117682,0.3257,4311.8,4311.2,3.0]
[1755739117898,0.4586,4311.7,4311.4,3.0]
[1755739118058,0.02,4311.8,4311.5,3.715]
[1755739118258,0.7643,4311.6,4311.5,3.715]
[1755739118876,0.7643,4311.6,4311.5,7.905]
[1755739122790,0.3057,4311.6,4311.5,7.905]
[1755739123574,0.02,4311.8,4311.5,7.905]
[1755739123881,0.3155,4311.6,4311.5,8.565]
[1755739124887,0.3155,4311.6,4311.5,3.701]
[1755739124888,0.7667,4311.6,4311.5,3.701]
[1755739125191,0.7667,4311.6,4310.6,4.19]
[1755739125394,0.3155,4311.6,4310.7,3.701]
[1755739125562,0.4512,4311.5,4310.8,3.701]
[1755739125888,0.3155,4310.9,4310.8,3.701]
[1755739126203,0.7667,4310.9,4310.8,3.701]
[1755739126576,0.7667,4310.9,4310.8,3.817]
[1755739126962,0.7667,4310.9,4310.8,0.116]
[1755739127163,0.7667,4310.9,4310.5,0.116]
[1755739127371,0.5672,4310.8,4310.5,3.698]
[1755739127594,0.3155,4310.6,4310.5,3.698]
[1755739127800,0.7667,4310.6,4310.5,3.698]
[1755739129204,0.7667,4310.6,4310.1,0.61]
[1755739129205,0.7667,4310.6,4310.4,3.698]
[1755739129504,0.3155,4310.6,4310.5,0.001]
[1755739129667,0.4315,4310.6,4310.5,0.001]
[1755739130079,0.8827,4310.6,4310.5,0.001]
[1755739133923,3.8827,4310.6,4310.5,0.001]
[1755739134414,0.66,4310.5,4310.1,0.61]
[1755739134632,24.51659329,4310.2,4310.1,0.61]
[1755739134778,28.87561607,4310.2,4310.1,0.61]
[1755739136382,28.66079329,4310.2,4310.1,0.61]
[1755739136929,3.66,4310.1,4309.8,0.02]
[1755739137125,0.9755,4309.9,4309.8,0.02]
[1755739137623,1.4267,4309.9,4309.8,0.02]
[1755739137789,8.1177,4309.9,4309.8,0.02]
[1755739138682,4.4267,4309.9,4309.8,0.02]
[1755739138882,3.7667,4309.9,4309.8,0.02]
[1755739139533,7.4557,4309.9,4309.8,0.02]
[1755739139682,3.7667,4309.9,4309.8,0.02]
[1755739139885,7.4557,4309.9,4309.8,0.02]
[1755739140499,3.3155,4309.9,4309.8,0.02]
[1755739140696,0.3155,4309.9,4309.8,0.02]
[1755739140900,0.093039,4311.1,4309.8,0.02]
[1755739140901,21.20109329,4310.4,4309.8,0.3248]
[1755739141131,24.88809329,4310.4,4309.8,0.3248]
[1755739141501,0.1574,4309.9,4309.8,0.02]
[1755739141930,3.6056,4309.9,4309.8,0.02]
[1755739142739,28.49969329,4309.9,4309.8,0.02]
[1755739144138,24.80669329,4309.9,4309.8,0.02]
[1755739144334,28.05049329,4309.9,4309.8,0.02]
[1755739144539,28.61469329,4309.9,4309.8,0.02]
[1755739145565,28.61469329,4309.9,4309.6,0.001]
[1755739145722,28.16649329,4309.9,4309.6,0.001]
[1755739145921,0.4482,4309.8,4309.6,0.001]
[1755739146122,0.1603,4309.7,4309.6,0.001]
[1755739146666,0.6115,4309.7,4309.6,0.001]
[1755739146829,1.2715,4309.7,4309.6,0.001]
[1755739147536,24.86109329,4309.4,4309.3,0.001]
[1755739147746,28.86359329,4309.4,4309.3,0.001]
[1755739147937,29.43079329,4309.4,4309.3,0.001]
[1755739148135,3.66,4309.3,4307.1,0.4302]
[1755739148480,25.29259329,4308.9,4307.1,0.4302]
[1755739148634,3.66,4308.8,4306.9,0.4302]
[1755739148839,21.51659329,4307.9,4306.9,0.4302]
[1755739149036,21.51659329,4307.9,4306.5,0.4302]
[1755739149037,28.31859329,4307.9,4306.5,0.4302]
[1755739149276,28.76979329,4307.9,4306.5,0.4302]
[1755739149477,24.20109329,4306.9,4306.2,0.003]
[1755739149645,28.20259329,4306.9,4306.2,0.003]
[1755739149971,28.76979329,4306.9,4306.2,0.003]
[1755739150365,0.66,4306.7,4306.2,0.003]
[1755739150556,0.4315,4306.7,4306.2,0.003]
[1755739150757,3.804,4306.7,4306.6,0.3198]
[1755739150967,4.0953,4306.7,4306.6,0.015]
[1755739151469,3.804,4306.7,4306.6,0.3269]
[1755739151934,0.116,4306.7,4306.6,0.7727]
[1755739152270,24.89109329,4306.7,4306.6,0.015]
[1755739153183,21.20109329,4306.7,4306.6,0.7727]
[1755739153380,3.69,4307.0,4306.6,0.7727]
[1755739153676,3.69,4307.0,4306.7,0.4458]
[1755739153879,21.20109329,4307.6,4306.9,0.3119]
[1755739154077,21.20109329,4307.6,4307.0,0.4458]
[1755739154078,3.69,4307.5,4307.0,0.4458]
[1755739154244,21.20109329,4307.8,4307.4,0.3119]
[1755739154572,3.691,4307.7,4307.5,0.4458]
[1755739154769,6.691,4307.7,4307.6,0.4458]
[1755739154972,21.20109329,4308.2,4307.7,0.3119]
[1755739155187,6.69,4308.1,4307.8,0.02]
[1755739155395,3.69,4308.0,4307.8,0.02]
[1755739155600,21.20109329,4308.2,4307.9,0.3119]
[1755739155806,0.4562,4309.2,4308.0,0.4458]
[1755739155989,21.20109329,4308.4,4308.0,0.4458]
[1755739156192,3.689,4308.3,4308.0,0.4458]
[1755739156586,21.20109329,4308.4,4308.2,0.3119]
[1755739156788,3.688,4308.2,4307.8,0.02]
[1755739156962,3.688,4308.2,4308.1,0.3119]
[1755739157162,21.20109329,4308.4,4308.1,0.3119]
[1755739157367,3.687,4308.3,4308.1,0.3119]
[1755739157569,3.687,4308.2,4308.1,0.3119]
[1755739157801,3.687,4308.2,4307.8,0.02]
[1755739158195,3.687,4308.2,4307.8,0.4658]
[1755739158697,21.20109329,4308.4,4308.1,0.3119]
[1755739158913,3.685,4308.3,4308.1,0.3119]
[1755739159202,21.20109329,4308.4,4308.2,0.4458]
[1755739159397,3.684,4308.3,4308.2,0.4458]
[1755739159587,0.4562,4309.3,4308.3,0.3119]
[1755739159763,21.20109329,4308.5,4308.3,0.3119]
[1755739159964,3.683,4308.4,4308.3,0.7577]
[1755739160881,3.683,4308.4,4308.3,0.3119]
[1755739161080,21.20109329,4308.5,4308.3,0.3119]
[1755739161282,5.13673822,4308.4,4307.8,0.02]
[1755739161506,21.20109329,4308.0,4307.8,0.02]
[1755739161781,4.18810042,4307.9,4307.8,0.02]
[1755739162308,4.76030042,4307.9,4307.8,0.02]
[1755739162482,0.62110042,4307.9,4307.8,0.02]
[1755739162679,4.30310042,4307.9,4307.8,0.02]
[1755739162883,4.01080042,4307.9,4307.8,0.02]
[1755739163415,4.01080042,4307.9,4307.8,0.7777]
[1755739163885,3.797,4307.9,4307.8,0.7777]
[1755739164313,3.796,4307.9,4307.8,0.7777]
[1755739165099,0.116,4307.9,4307.8,0.7777]
[1755739165501,0.116,4308.1,4307.8,0.7777]
[1755739165701,0.116,4308.1,4307.9,0.4458]
[1755739165903,0.116,4308.1,4308.0,0.3119]
[1755739166102,25.66479329,4308.1,4307.8,0.02]
[1755739167617,0.21423872,4308.0,4307.8,0.02]
[1755739167816,3.9673,4307.9,4307.8,0.02]
[1755739167997,4.67482143,4307.9,4307.8,0.02]
[1755739169395,5.13102143,4307.9,4307.8,0.02]
[1755739169595,4.81468504,4307.9,4307.8,0.3319]
[1755739169795,1.14168504,4307.9,4307.8,0.3319]
[1755739170016,3.88720754,4307.9,4307.8,0.3319]
[1755739170220,0.70749025,4307.9,4307.8,0.3319]
[1755739170427,0.70749025,4307.9,4307.8,0.7777]
[1755739170428,0.21423092,4307.9,4307.8,0.7777]
[1755739170627,3.673,4307.9,4307.8,0.7777]
[1755739170825,0.70751363,4307.9,4307.8,0.7777]
[1755739171017,3.789,4307.9,4307.8,0.7777]
[1755739172320,0.116,4307.9,4307.8,0.7777]
[1755739172525,3.788,4307.9,4307.8,0.7777]
[1755739173326,3.786,4307.9,4307.8,0.7777]
[1755739173627,3.786,4307.9,4307.8,0.3319]
[1755739173823,3.785,4307.9,4307.8,0.3319]
[1755739181236,4.28072395,4307.9,4307.8,0.3319]
[1755739181605,4.26972395,4307.9,4307.8,0.3319]